[Event "WJCC U20 Open 2019"]
[Site "New Delhi"]
[Date "2019.10.16"]
[Round "2.14"]
[White "Haria, Ravi"]
[Black "De Silva, L M S T"]
[Result "1-0"]
[ECO "C84"]
[WhiteElo "2463"]
[BlackElo "1879"]
[Annotator "ChessBase"]
[PlyCount "95"]
[EventDate "2019.10.15"]
[EventType "swiss"]
[EventCountry "IND"]
[SourceTitle "playchess.com"]
[Source "ChessBase"]
[SourceQuality "1"]
[TimeControl "40/5400+30:1800+30"]

1. e4 {[%emt 0:00:00]} e5 {[%emt 0:00:00]} 2. Nf3 {[%emt 0:00:00]} Nc6 {[%emt 0:00:00]} 3. Bb5 {[%emt 0:00:00]} a6 {[%emt 0:00:07]} 4. Ba4 {[%emt 0:00:00]} Nf6 {[%emt 0:00:12]} 5. O-O {[%emt 0:00:41]} Be7 {[%emt 0:00:15]} 6. d3 {[%emt 0:00:19]} b5 {[%emt 0:00:07]} 7. Bb3 {[%emt 0:00:05]} d6 {[%emt 0:00:36]} 8. Bd2 {[%emt 0:01:01]} O-O {[%emt 0:00:42]} 9. h3 {[%emt 0:01:13]} Bb7 {[%emt 0:03:17]} 10. a3 {[%emt 0:05:27]} Nb8 {[%emt 0:02:23]} 11. Nc3 {[%emt 0:10:31]} c5 {[%emt 0:01:21]} 12. Bg5 {[%emt 0:16:32]} Nbd7 {[%emt 0:00:30]} 13. Nh2 {[%emt 0:17:51]} b4 {[%emt 0:17:48]} 14. axb4 {[%emt 0:05:46]} cxb4 {[%emt 0:00:19]} 15. Na4 {[%emt 0:00:35]} d5 {[%emt 0:06:44]} 16. exd5 {[%emt 0:13:59]} Nxd5 {[%emt 0:01:49]} 17. Bd2 {[%emt 0:02:28]} Kh8 {[%emt 0:12:13]} 18. Qf3 {[%emt 0:02:45]} N7f6 {[%emt 0:02:28]} 19. Qe2 {[%emt 0:05:37]} Bd6 {[%emt 0:04:16]} 20. Nf3 {[%emt 0:00:52]} Qc7 {[%emt 0:04:17]} 21. Rfe1 {[%emt 0:00:42]} Rae8 {[%emt 0:01:39]} 22. Ng5 {[%emt 0:01:02]} h6 {[%emt 0:05:28]} 23. Ne4 {[%emt 0:00:13]} Nf4 {[%emt 0:01:39]} 24. Qf1 {[%emt 0:04:38]} Nh7 {[%emt 0:10:01]} 25. f3 {[%emt 0:04:15]} Be7 {[%emt 0:09:32]} 26. Qf2 {[%emt 0:00:40]} Qd8 {[%emt 0:07:53]} 27. Qb6 {[%emt 0:02:34]} Qc8 {[%emt 0:05:02]} 28. Bxf4 {[%emt 0:02:09]} exf4 {[%emt 0:00:27]} 29. Nd6 {[%emt 0:00:14]} Bxd6 {[%emt 0:00:23]} 30. Qxd6 {[%emt 0:00:05]} Ng5 {[%emt 0:02:09]} 31. Qxf4 {[%emt 0:00:49]} Bxf3 {[%emt 0:01:20]} 32. h4 {[%emt 0:02:07]} Nh3+ {[%emt 0:00:25]} 33. gxh3 {[%emt 0:00:05]} Qxh3 {[%emt 0:00:05]} 34. Qh2 {[%emt 0:00:43]} Qg4+ {[%emt 0:00:24]} 35. Kf2 {[%emt 0:00:53]} Bc6 {[%emt 0:01:05]} 36. Qg3 {[%emt 0:00:32]} Qd4+ {[%emt 0:00:09]} 37. Kf1 {[%emt 0:00:28]} f5 {[%emt 0:00:53]} 38. Rxe8 {[%emt 0:00:29]} Rxe8 {[%emt 0:00:19]} 39. Re1 {[%emt 0:00:13]} Rf8 {[%emt 0:00:39]} 40. Re6 {[%emt 0:00:52]} f4 {[%emt 0:00:33]} 41. Qf2 {[%emt 0:01:30]} Qd7 {[%emt 0:00:39]} 42. Nc5 {[%emt 0:07:03]} Qc8 {[%emt 0:01:16]} 43. Qd4 {[%emt 0:02:57]} Kh7 {[%emt 0:01:00]} 44. Kf2 {[%emt 0:06:04]} Rd8 {[%emt 0:02:01]} 45. Rxc6 {[%emt 0:02:35]} Qxc6 {[%emt 0:00:47]} 46. Qxd8 {[%emt 0:00:07]} Qxc5+ {[%emt 0:00:04]} 47. d4 {[%emt 0:00:12]} Qf5 {[%emt 0:01:25]} 48. h5 {[%emt 0:00:24]} 1-0

[Event "WJCC U20 Open 2019"]
[Site "New Delhi"]
[Date "2019.10.16"]
[Round "2.19"]
[White "Wang, Shixu B"]
[Black "Gholami, Aryan"]
[Result "1/2-1/2"]
[ECO "D38"]
[WhiteElo "2370"]
[BlackElo "2554"]
[Annotator "RC"]
[PlyCount "66"]
[EventDate "2019.10.15"]
[EventType "swiss"]
[EventCountry "IND"]
[SourceTitle "playchess.com"]
[Source "ChessBase"]
[SourceQuality "1"]
[TimeControl "40/5400+30:1800+30"]

1. d4 {[%emt 0:00:00]} Nf6 {[%emt 0:00:00]} 2. c4 {[%emt 0:00:00]} e6 {[%emt 0:00:00]} 3. Nf3 {[%emt 0:00:00]} d5 {[%emt 0:00:44]} 4. Nc3 {[%emt 0:00:23]} Bb4 {[%emt 0:00:11]} 5. e3 {[%emt 0:02:32]} O-O {[%emt 0:00:20]} 6. Bd2 {[%emt 0:05:15]} c6 {[%emt 0:01:17]} 7. Bd3 {[%emt 0:02:15]} Nbd7 {[%emt 0:00:12]} 8. O-O {[%emt 0:00:08]} Qe7 {[%emt 0:04:57]} 9. a3 {[%emt 0:00:25]} dxc4 {[%emt 0:00:59]} 10. Bxc4 {[%emt 0:01:14]} Bd6 {[%emt 0:02:07]} 11. Qc2 {[%emt 0:23:06]} b5 {[%emt 0:15:12]} 12. Bd3 {[%emt 0:02:47]} Bb7 {[%emt 0:00:07]} 13. Ng5 {[%emt 0:09:11]} h6 {[%emt 0:34:36]} 14. Nge4 {[%emt 0:00:05]} Nxe4 {[%emt 0:00:31]} 15. Nxe4 {[%emt 0:00:23]} c5 {[%emt 0:00:25]} 16. dxc5 {[%emt 0:15:50]} Nxc5 {[%emt 0:00:48]} 17. Nxc5 {[%emt 0:00:32]} Bxc5 {[%emt 0:00:21]} 18. Bh7+ {[%emt 0:01:46]} Kh8 {[%emt 0:00:06]} 19. Be4 {[%emt 0:00:04]} Rac8 {[%emt 0:01:11]} 20. Bc3 {[%emt 0:00:13]} a5 {[%emt 0:01:31]} 21. Bxb7 {[%emt 0:02:57]} Qxb7 {[%emt 0:00:07]} 22. Rfd1 {[%emt 0:04:52]} b4 {[%emt 0:11:31]} 23. axb4 {[%emt 0:00:30]} axb4 {[%emt 0:00:06]} 24. Qb3 {[%emt 0:00:19]} Rfd8 {[%emt 0:00:09]} 25. Rac1 {[%emt 0:11:19]} Qb6 {[%emt 0:02:55]} 26. Rxd8+ {[%emt 0:06:22]} Rxd8 {[%emt 0:00:06]} 27. Be1 {[%emt 0:00:14]} Be7 {[%emt 0:02:13]} 28. h3 {[%emt 0:03:05]} Kg8 {[%emt 0:03:17]} 29. Qc2 {[%emt 0:01:58]} h5 {[%emt 0:02:36]} 30. b3 {[%emt 0:01:13]} h4 {[%emt 0:00:07]} 31. Qc7 {[%emt 0:01:20]} Bf6 {[%emt 0:01:42]} 32. Qf4 {[%emt 0:00:46]} Rd3 {[%emt 0:05:47]} 33. Qxb4 {[%emt 0:01:18]} Rxb3 {[%emt 0:00:04]} 1/2-1/2

[Event "WJCC U20 Open 2019"]
[Site "New Delhi"]
[Date "2019.10.16"]
[Round "2.21"]
[White "O`Donnell, Conor"]
[Black "Nigmatov, Ortik"]
[Result "1/2-1/2"]
[ECO "E73"]
[WhiteElo "2345"]
[BlackElo "2494"]
[Annotator "ChessBase"]
[PlyCount "179"]
[EventDate "2019.10.15"]
[EventType "swiss"]
[EventCountry "IND"]
[SourceTitle "playchess.com"]
[Source "ChessBase"]
[SourceQuality "1"]
[TimeControl "40/5400+30:1800+30"]

1. c4 {[%emt 0:00:00]} Nf6 {[%emt 0:00:00]} 2. Nc3 {[%emt 0:00:00]} g6 {[%emt 0:00:00]} 3. e4 {[%emt 0:00:22]} d6 {[%emt 0:00:00]} 4. d4 {[%emt 0:00:14]} Bg7 {[%emt 0:00:08]} 5. Be2 {[%emt 0:00:18]} O-O {[%emt 0:00:15]} 6. Be3 {[%emt 0:00:05]} c5 {[%emt 0:05:21]} 7. dxc5 {[%emt 0:00:16]} Qa5 {[%emt 0:00:27]} 8. Bd2 {[%emt 0:00:30]} Qxc5 {[%emt 0:00:19]} 9. Nf3 {[%emt 0:00:24]} Bg4 {[%emt 0:04:01]} 10. Be3 Qa5 {[%emt 0:03:19]} 11. O-O {[%emt 0:01:13]} Nbd7 {[%emt 0:01:45]} 12. a3 {[%emt 0:04:21]} Rfc8 {[%emt 0:01:34]} 13. b4 {[%emt 0:03:29]} Qd8 {[%emt 0:00:15]} 14. Rc1 {[%emt 0:01:06]} Qf8 {[%emt 0:25:46]} 15. Qd2 {[%emt 0:13:27]} Be6 {[%emt 0:07:24]} 16. Qa2 {[%emt 0:04:59]} Ne5 {[%emt 0:12:12]} 17. Nxe5 {[%emt 0:06:19]} dxe5 {[%emt 0:00:05]} 18. Bd3 {[%emt 0:03:16]} Bh6 {[%emt 0:01:46]} 19. Bxh6 {[%emt 0:07:18]} Qxh6 {[%emt 0:00:03]} 20. Qe2 {[%emt 0:01:47]} Qg5 {[%emt 0:01:31]} 21. c5 {[%emt 0:11:04]} Rd8 {[%emt 0:02:21]} 22. g3 {[%emt 0:09:45]} Rd4 {[%emt 0:08:21]} 23. Rcd1 {[%emt 0:03:57]} Rad8 {[%emt 0:00:11]} 24. Rc1 {[%emt 0:00:00]} Ra8 {[%emt 0:00:49]} 25. Rcd1 {[%emt 0:01:00]} Rad8 {[%emt 0:00:11]} 26. Rc1 {[%emt 0:00:00]} Ra8 {[%emt 0:00:49]} 27. Rcd1 {[%emt 0:01:00]} Rad8 {[%emt 0:00:11]} 28. Nb5 {[%emt 0:05:15]} R4d7 {[%emt 0:00:30]} 29. Nxa7 {[%emt 0:00:30]} Nh5 {[%emt 0:05:02]} 30. h4 {[%emt 0:03:47]} Qg4 {[%emt 0:14:12]} 31. c6 {[%emt 0:03:01]} bxc6 {[%emt 0:00:09]} 32. Nxc6 {[%emt 0:00:28]} Rxd3 {[%emt 0:01:55]} 33. Qxg4 {[%emt 0:00:27]} Bxg4 {[%emt 0:00:05]} 34. Rxd3 {[%emt 0:00:25]} Rxd3 {[%emt 0:00:09]} 35. Nxe5 {[%emt 0:01:07]} Rxa3 {[%emt 0:00:09]} 36. Nxg4 {[%emt 0:00:32]} Rb3 {[%emt 0:00:59]} 37. Ne5 {[%emt 0:04:35]} Rxb4 {[%emt 0:00:10]} 38. Re1 {[%emt 0:00:13]} Nf6 {[%emt 0:01:45]} 39. Nc6 {[%emt 0:00:16]} Rb7 {[%emt 0:01:16]} 40. Re2 {[%emt 0:07:24]} Kg7 {[%emt 0:00:32]} 41. f3 {[%emt 0:30:44]} Rc7 {[%emt 0:30:18]} 42. Rc2 {[%emt 0:00:55]} Nd7 {[%emt 0:00:56]} 43. Nd4 {[%emt 0:02:20]} Rb7 {[%emt 0:00:22]} 44. Kf2 {[%emt 0:00:53]} e5 {[%emt 0:02:03]} 45. Ne2 {[%emt 0:02:35]} f5 {[%emt 0:00:40]} 46. Nc3 {[%emt 0:00:00]} Nf6 {[%emt 0:00:00]} 47. exf5 {[%emt 0:00:00]} gxf5 {[%emt 0:00:00]} 48. Re2 {[%emt 0:00:00]} e4 {[%emt 0:00:00]} 49. Nd1 {[%emt 0:00:00]} Kg6 {[%emt 0:00:00]} 50. Ne3 {[%emt 0:00:00]} Rb3 {[%emt 0:00:00]} 51. fxe4 {[%emt 0:00:00]} fxe4 {[%emt 0:00:00]} 52. g4 {[%emt 0:00:00]} Kf7 {[%emt 0:00:00]} 53. g5 {[%emt 0:00:00]} Nh5 {[%emt 0:00:00]} 54. Nc4 {[%emt 0:00:00]} Rf3+ {[%emt 0:00:00]} 55. Kg1 {[%emt 0:00:50]} Ke6 {[%emt 0:00:00]} 56. Nd2 {[%emt 0:01:59]} Rg3+ {[%emt 0:00:00]} 57. Kh2 {[%emt 0:00:31]} Rd3 {[%emt 0:00:51]} 58. Nxe4 {[%emt 0:00:36]} Kf5 {[%emt 0:00:10]} 59. Nf2 {[%emt 0:02:05]} Rf3 {[%emt 0:00:12]} 60. Kg2 {[%emt 0:01:03]} Ra3 {[%emt 0:01:41]} 61. Re7 {[%emt 0:00:56]} Nf4+ {[%emt 0:00:14]} 62. Kg1 {[%emt 0:00:49]} Kg6 {[%emt 0:03:35]} 63. Re4 {[%emt 0:00:01]} Rg3+ {[%emt 0:00:45]} 64. Kf1 {[%emt 0:00:53]} Rf3 {[%emt 0:00:07]} 65. Kg1 {[%emt 0:00:32]} Kh5 {[%emt 0:01:50]} 66. Re7 {[%emt 0:00:06]} Kg6 {[%emt 0:00:19]} 67. Re4 {[%emt 0:00:15]} Nd5 {[%emt 0:01:06]} 68. Kg2 {[%emt 0:00:13]} Rb3 {[%emt 0:00:10]} 69. Re6+ {[%emt 0:00:52]} Kf5 {[%emt 0:00:12]} 70. Rh6 {[%emt 0:00:30]} Rb7 {[%emt 0:01:54]} 71. Kf3 {[%emt 0:00:30]} Rb3+ {[%emt 0:00:39]} 72. Ke2 {[%emt 0:00:54]} Rb2+ {[%emt 0:00:59]} 73. Kf3 {[%emt 0:00:20]} Rb3+ {[%emt 0:00:24]} 74. Ke2 {[%emt 0:00:07]} Nf4+ {[%emt 0:00:06]} 75. Kd2 {[%emt 0:00:50]} Rb7 {[%emt 0:01:27]} 76. Rf6+ {[%emt 0:00:32]} Ke5 {[%emt 0:00:01]} 77. Ng4+ {[%emt 0:00:44]} Ke4 78. Nf2+ {[%emt 0:00:12]} Ke5 {[%emt 0:00:10]} 79. Nd3+ {[%emt 0:00:22]} Nxd3 {[%emt 0:00:06]} 80. Kxd3 {[%emt 0:00:04]} Rb4 {[%emt 0:01:45]} 81. Rh6 {[%emt 0:00:18]} Rb7 {[%emt 0:00:06]} 82. Ke3 {[%emt 0:00:42]} Kf5 {[%emt 0:00:19]} 83. Kd4 {[%emt 0:00:37]} Ra7 {[%emt 0:00:23]} 84. Kc5 {[%emt 0:00:44]} Rg7 {[%emt 0:01:06]} 85. Kd5 {[%emt 0:00:49]} Ra7 {[%emt 0:00:14]} 86. Rf6+ {[%emt 0:00:27]} Kg4 {[%emt 0:00:06]} 87. Rh6 {[%emt 0:00:08]} Kf5 {[%emt 0:00:05]} 88. Rf6+ {[%emt 0:00:45]} Kg4 {[%emt 0:00:03]} 89. Rh6 {[%emt 0:00:07]} Kf5 {[%emt 0:00:07]} 90. Rf6+ {[%emt 0:00:13] Ke5+} 1/2-1/2

[Event "WJCC U20 Open 2019"]
[Site "New Delhi"]
[Date "2019.10.16"]
[Round "2.22"]
[White "Arjun Kalyan"]
[Black "Saurabh Anand"]
[Result "1/2-1/2"]
[ECO "C55"]
[WhiteElo "2483"]
[BlackElo "2236"]
[Annotator "RC"]
[PlyCount "79"]
[EventDate "2019.10.15"]
[EventType "swiss"]
[EventCountry "IND"]
[SourceTitle "playchess.com"]
[Source "ChessBase"]
[SourceQuality "1"]
[TimeControl "40/5400+30:1800+30"]

1. e4 {[%emt 0:00:00]} e5 {[%emt 0:00:07]} 2. Nf3 {[%emt 0:00:00]} Nc6 {[%emt 0:00:10]} 3. Bc4 {[%emt 0:00:00]} Nf6 {[%emt 0:00:18]} 4. d3 {[%emt 0:00:08]} Be7 {[%emt 0:00:46]} 5. O-O {[%emt 0:00:24]} O-O {[%emt 0:00:11]} 6. Re1 {[%emt 0:00:13]} d6 {[%emt 0:00:48]} 7. a4 {[%emt 0:00:17]} Na5 {[%emt 0:00:58]} 8. Ba2 {[%emt 0:00:11]} c5 {[%emt 0:00:20]} 9. Na3 {[%emt 0:00:21]} Nc6 {[%emt 0:01:33]} 10. c3 {[%emt 0:00:13]} a6 {[%emt 0:01:03]} 11. h3 {[%emt 0:03:10]} h6 {[%emt 0:01:11]} 12. Bd2 {[%emt 0:01:24]} Re8 {[%emt 0:01:30]} 13. Nc2 {[%emt 0:04:31]} Be6 {[%emt 0:03:14]} 14. Bxe6 {[%emt 0:02:39]} fxe6 {[%emt 0:00:37]} 15. b4 {[%emt 0:00:35]} cxb4 {[%emt 0:02:38]} 16. Nxb4 {[%emt 0:00:29]} Nxb4 {[%emt 0:06:43]} 17. cxb4 {[%emt 0:01:04]} b5 {[%emt 0:03:52]} 18. Qb3 {[%emt 0:13:59]} Qd7 {[%emt 0:06:01]} 19. axb5 {[%emt 0:03:56]} axb5 {[%emt 0:01:34]} 20. Ra5 {[%emt 0:02:14]} Rab8 21. Rea1 {[%emt 0:01:19]} Rb7 {[%emt 0:08:28]} 22. Be3 {[%emt 0:04:18]} Rc8 {[%emt 0:02:12]} 23. Ra7 {[%emt 0:03:45]} Kf7 {[%emt 0:00:58]} 24. g4 {[%emt 0:06:17]} Nh7 {[%emt 0:02:57]} 25. Rxb7 {[%emt 0:16:12]} Qxb7 {[%emt 0:01:02]} 26. Ra7 {[%emt 0:00:02]} Qc6 {[%emt 0:01:04]} 27. Qa2 {[%emt 0:01:35]} Rc7 {[%emt 0:05:03]} 28. Ra6 {[%emt 0:01:02]} Qc3 {[%emt 0:06:33]} 29. Bc5 {[%emt 0:07:00]} Ng5 {[%emt 0:03:39]} 30. Be3 {[%emt 0:00:00]} Nh7 {[%emt 0:00:00]} 31. Bc5 {[%emt 0:01:00]} Ng5 {[%emt 0:01:00]} 32. Nxg5+ {[%emt 0:10:41]} hxg5 {[%emt 0:00:30]} 33. Ra7 Qxd3 {[%emt 0:07:02]} 34. Be3 {[%emt 0:01:00]} Rxa7 {[%emt 0:17:11]} 35. Qxa7 {[%emt 0:00:55]} Qb1+ {[%emt 0:02:29]} 36. Kh2 {[%emt 0:00:06]} Qxb4 {[%emt 0:00:29]} 37. Bxg5 {[%emt 0:04:13]} d5 {[%emt 0:00:07]} 38. exd5 exd5 39. Qb7 Qc5 40. Qa7 1/2-1/2

[Event "WJCC U20 Open 2019"]
[Site "New Delhi"]
[Date "2019.10.16"]
[Round "2.26"]
[White "Wagh Suyog"]
[Black "Raja Harshit"]
[Result "1/2-1/2"]
[ECO "E10"]
[WhiteElo "2229"]
[BlackElo "2440"]
[Annotator "NA"]
[PlyCount "170"]
[EventDate "2019.10.15"]
[EventType "swiss"]
[EventCountry "IND"]
[SourceTitle "playchess.com"]
[Source "ChessBase"]
[SourceQuality "1"]
[TimeControl "40/5400+30:1800+30"]

1. d4 Nf6 2. c4 e6 3. Nf3 c5 4. e3 cxd4 5. Nxd4 Be7 6. Nc3 O-O 7. Be2 a6 8. O-O Qc7 9. Bd2 Nc6 10. Rc1 Rd8 11. Qc2 Ne5 12. Ne4 d6 13. b3 Bd7 14. Nxf6+ Bxf6 15. Bc3 Ng6 16. Rfd1 Rac8 17. Qd2 Be8 $14 18. a4 Ne7 19. Ba5 b6 20. Bb4 Qb8 21. Bf3 Nc6 22. Nxc6 Bxc6 23. Bxd6 Bxf3 24. gxf3 Qb7 25. Qe2 Be7 26. Bg3 h5 27. h3 h4 28. Bh2 Bc5 29. Rxd8+ Rxd8 30. Rd1 Qe7 31. Rxd8+ Qxd8 32. Kf1 Qd7 33. Kg2 Qd8 34. Qc2 a5 35. Bf4 e5 36. Bh2 Qd6 37. Qe4 f6 38. f4 exf4 39. Bxf4 Qf8 40. Qd5+ Kh7 41. Qh5+ Kg8 42. Bh2 f5 43. Qxh4 Qa8+ 44. Kg1 Qf3 45. Qd8+ Kh7 46. Qd5 Qxh3 47. Be5 Qg4+ 48. Kf1 Qh5 49. Bc3 Qg4 50. Ke1 Qg1+ 51. Ke2 Qb1 52. Qd1 Qe4 53. Kd2 Kg8 54. Qg1 Bf8 55. Qg6 Qf3 56. Ke1 Qh1+ 57. Kd2 Qf3 58. Qg3 Qe4 59. Qg1 Qf3 60. Qf1 Bc5 61. Qe2 Qg2 62. Kc2 Bf8 63. Kb2 Bc5 64. Kc2 Bf8 65. Kb2 Bc5 66. Bd4 Kf8 67. Qd2 Ke8 68. Bc3 g5 69. Bd4 g4 70. Bxc5 bxc5 71. Kc3 Qf1 72. Qc2 Qa1+ 73. Kd2 Qe5 74. Ke2 Ke7 75. Kf1 Kf6 76. Qd2 Qc7 77. e4 fxe4 78. Qh6+ Kf5 79. Qh5+ Kf6 80. Qxg4 Qe5 81. Kg2 Qf5 82. Qg3 Qg5 83. Kf1 Qc1+ 84. Kg2 Qg5 85. Kh3 Qxg3+ 1/2-1/2

[Event "WJCC U20 Open 2019"]
[Site "New Delhi"]
[Date "2019.10.16"]
[Round "2.27"]
[White "Murzin, Volodar"]
[Black "Doluweera, Minul Sanjula"]
[Result "1-0"]
[ECO "B38"]
[WhiteElo "2433"]
[BlackElo "2191"]
[Annotator "RC"]
[PlyCount "45"]
[EventDate "2019.10.15"]
[EventType "swiss"]
[EventCountry "IND"]
[SourceTitle "playchess.com"]
[Source "ChessBase"]
[SourceQuality "1"]
[TimeControl "40/5400+30:1800+30"]

1. e4 {[%emt 0:00:00]} c5 {[%emt 0:00:00]} 2. Nf3 {[%emt 0:00:00]} g6 {[%emt 0:00:11]} 3. d4 {[%emt 0:01:32]} cxd4 {[%emt 0:00:06]} 4. Nxd4 {[%emt 0:04:15]} Bg7 {[%emt 0:00:24]} 5. c4 {[%emt 0:00:24]} Nc6 {[%emt 0:02:44]} 6. Be3 {[%emt 0:00:52]} Nf6 {[%emt 0:00:09]} 7. Nc3 {[%emt 0:00:17]} Nxd4 {[%emt 0:00:44]} 8. Bxd4 {[%emt 0:00:13]} d6 {[%emt 0:00:31]} 9. Be2 {[%emt 0:06:46]} O-O {[%emt 0:00:29]} 10. O-O {[%emt 0:00:14]} a5 {[%emt 0:00:16]} 11. b3 {[%emt 0:00:21]} Bd7 {[%emt 0:00:09]} 12. Qd2 {[%emt 0:01:01]} Bc6 {[%emt 0:00:06]} 13. Bd3 {[%emt 0:02:59]} Nd7 {[%emt 0:06:56]} 14. Bxg7 {[%emt 0:00:23]} Kxg7 {[%emt 0:00:15]} 15. Rae1 {[%emt 0:00:08]} Nc5 {[%emt 0:26:51]} 16. Bc2 {[%emt 0:05:35]} Qb6 17. Re3 {[%emt 0:08:50]} h5 {[%emt 0:33:52]} 18. Nd5 {[%emt 0:06:12]} Bxd5 {[%emt 0:00:10]} 19. exd5 {[%emt 0:00:13]} e5 {[%emt 0:07:02]} 20. dxe6 {[%emt 0:01:19]} fxe6 {[%emt 0:00:10]} 21. Rg3 {[%emt 0:02:13]} Rf6 {[%emt 0:02:55]} 22. Qg5 {[%emt 0:00:44]} Nd7 {[%emt 0:03:24]} 23. Bxg6 {[%emt 0:01:03]} 1-0

[Event "WJCC U20 Open 2019"]
[Site "New Delhi"]
[Date "2019.10.16"]
[Round "2.28"]
[White "Davtyan, Artur"]
[Black "Lama, Milan"]
[Result "1-0"]
[ECO "D25"]
[WhiteElo "2418"]
[BlackElo "1976"]
[Annotator "NA RC"]
[PlyCount "85"]
[EventDate "2019.10.15"]
[EventType "swiss"]
[EventCountry "IND"]
[SourceTitle "playchess.com"]
[Source "ChessBase"]
[SourceQuality "1"]
[TimeControl "40/5400+30:1800+30"]

1. d4 {[%emt 0:00:00]} d5 {[%emt 0:00:00]} 2. Nf3 {[%emt 0:00:45]} Nf6 {[%emt 0:00:34]} 3. c4 {[%emt 0:00:03]} dxc4 {[%emt 0:00:58]} 4. e3 {[%emt 0:00:31]} Bg4 {[%emt 0:01:18]} 5. Bxc4 {[%emt 0:00:31]} e6 {[%emt 0:00:23]} 6. Nc3 {[%emt 0:00:06]} a6 {[%emt 0:03:03]} 7. h3 {[%emt 0:01:05]} Bh5 {[%emt 0:02:14]} 8. O-O {[%emt 0:00:06]} Nc6 {[%emt 0:04:52]} 9. Re1 {[%emt 0:00:14] D22: Queen's Gambit Accepted: 3 Nf3 a6 4 e3} (9. Be2 Bd6 10. Nd2 Bxe2 11. Qxe2 O-O 12. Nf3 e5 13. d5 Ne7 14. e4 Ng6 15. Be3 Nd7 16. Nd2 Qe7 17. a3 f5 18. exf5 Rxf5 {1-0 (97) Yu,Y (2764)-Alekseenko,K (2638) St Petersburg 2018}) 9... Bb4 {[%emt 0:02:18]} 10. Bd2 {[%emt 0:11:24]} O-O {[%emt 0:02:15]} 11. a3 $146 {[%emt 0:01:05]} ({Predecessor:} 11. e4 Nxd4 12. Re3 Nxf3+ 13. gxf3 Qe7 14. e5 Nd7 15. a3 {0-1 (22) Croitoru,C (401)-Catricicau,C (792) Voineasa 2008}) 11... Bxc3 {[%emt 0:03:59]} 12. Bxc3 {[%emt 0:00:32]} Ne4 {[%emt 0:05:59]} 13. Bd3 {[%emt 0:03:42]} Ng5 {[%emt 0:08:40]} 14. Be2 {[%emt 0:01:12]} Nxf3+ {[%emt 0:02:59]} 15. Bxf3 {[%emt 0:00:38]} Bxf3 {[%emt 0:00:06]} 16. Qxf3 {[%emt 0:00:04]} Rb8 {[%emt 0:08:14]} 17. Rac1 {[%emt 0:05:28]} Ne7 {[%emt 0:10:29]} 18. Qg3 {[%emt 0:01:07]} Nd5 {[%emt 0:11:55]} 19. Ba5 {[%emt 0:01:04]} Rc8 {[%emt 0:04:04]} 20. e4 {[%emt 0:03:11]} Nb6 {[%emt 0:02:11]} 21. Rc5 {[%emt 0:02:32]} Na8 {[%emt 0:02:06]} 22. Rg5 {[%emt 0:05:33]} g6 {[%emt 0:03:03]} 23. Bc3 {[%emt 0:00:30]} Qd7 {[%emt 0:05:38]} 24. d5 {[%emt 0:01:07]} f6 {[%emt 0:01:23]} 25. dxe6 {[%emt 0:01:55]} Qe7 {[%emt 0:03:44]} 26. Rd5 {[%emt 0:06:13]} (26. Rg4 $142) 26... Nb6 {[%emt 0:00:56]} 27. Rd4 {[%emt 0:00:11]} Qxe6 {[%emt 0:01:10]} 28. f4 $16 {[%emt 0:00:01]} Rfd8 {[%emt 0:03:30]} 29. f5 {[%emt 0:00:21]} Qf7 {[%emt 0:00:33]} 30. fxg6 {[%emt 0:00:37]} hxg6 {[%emt 0:03:56]} 31. Rxd8+ {[%emt 0:00:02]} Rxd8 {[%emt 0:00:07]} 32. Rf1 {[%emt 0:00:01]} Rd6 {[%emt 0:01:07]} 33. e5 {[%emt 0:00:19]} Re6 {[%emt 0:00:29]} 34. exf6 {[%emt 0:00:06]} Nd5 {[%emt 0:00:52]} 35. Be5 {[%emt 0:00:26]} c6 {[%emt 0:00:58]} 36. h4 {[%emt 0:01:52]} Kf8 {[%emt 0:01:06]} 37. Bd6+ {[%emt 0:00:32]} Ke8 {[%emt 0:00:15]} 38. Be7 {[%emt 0:00:33]} Kd7 {[%emt 0:01:05]} 39. Qb8 {[%emt 0:00:02]} Nxe7 {[%emt 0:00:22]} 40. Qxb7+ {[%emt 0:00:52]} Kd6 {[%emt 0:00:37]} 41. fxe7 {[%emt 0:30:56]} Qxe7 {[%emt 0:30:29]} 42. Rd1+ {[%emt 0:00:05]} Ke5 {[%emt 0:00:32]} 43. Qxe7 {[%emt 0:00:07] Kd5} 1-0

[Event "WJCC U20 Open 2019"]
[Site "New Delhi"]
[Date "2019.10.16"]
[Round "2.29"]
[White "Di Benedetto, Edoardo"]
[Black "Vatsal Singhania"]
[Result "1/2-1/2"]
[ECO "E48"]
[WhiteElo "2401"]
[BlackElo "2157"]
[Annotator "NA"]
[PlyCount "95"]
[EventDate "2019.10.15"]
[EventType "swiss"]
[EventCountry "IND"]
[SourceTitle "playchess.com"]
[Source "ChessBase"]
[SourceQuality "1"]
[TimeControl "40/5400+30:1800+30"]

1. d4 Nf6 2. c4 e6 3. Nc3 Bb4 4. e3 O-O 5. Bd3 d5 6. cxd5 exd5 7. Nge2 Bd6 8. Nb5 Be7 9. O-O Re8 10. Nf4 c6 11. Nc3 Nbd7 12. f3 Nf8 13. Bc2 Bb4 14. Re1 Ba5 15. h3 Bb6 16. Nfe2 Ng6 17. Kh1 Be6 18. e4 dxe4 19. fxe4 Qd7 20. Qd3 Rad8 21. Rd1 Qe7 22. Qf3 Bc4 23. Bg5 h6 24. Bxf6 Qxf6 25. Qxf6 gxf6 26. Bd3 Be6 27. d5 cxd5 28. Bb5 Re7 29. exd5 Bd7 30. Bxd7 Rdxd7 31. Rf1 Kg7 32. Ng3 Re5 33. Nge4 f5 34. Ng3 f4 35. Nge4 f5 36. Nf2 Bd4 37. Nd3 Bxc3 38. bxc3 Rexd5 39. Nxf4 Nxf4 40. Rxf4 Rd1+ 41. Rxd1 Rxd1+ 42. Kh2 Kg6 43. Rb4 Rd7 44. Ra4 a6 45. Rb4 b5 46. a4 Rc7 47. axb5 axb5 48. Rxb5 1/2-1/2

[Event "WJCC U20 Open 2019"]
[Site "New Delhi"]
[Date "2019.10.16"]
[Round "2.35"]
[White "Muradli, Mahammad"]
[Black "Raahul V S"]
[Result "1-0"]
[ECO "D91"]
[WhiteElo "2459"]
[BlackElo "2262"]
[Annotator "ChessBase"]
[PlyCount "83"]
[EventDate "2019.10.15"]
[EventType "swiss"]
[EventCountry "IND"]
[SourceTitle "playchess.com"]
[Source "ChessBase"]
[SourceQuality "1"]
[TimeControl "40/5400+30:1800+30"]

1. d4 Nf6 2. c4 g6 3. Nc3 d5 4. Bg5 Bg7 5. Nf3 Ne4 6. Bf4 Nxc3 7. bxc3 O-O 8. cxd5 Qxd5 9. e3 c5 10. Be2 cxd4 11. cxd4 Nc6 12. O-O Bg4 13. Rb1 Qxa2 14. Rxb7 e5 15. dxe5 Rfd8 16. Qe1 Rac8 17. h3 Bxf3 18. Bxf3 Nxe5 19. Be4 Nc4 20. Qb1 Qa6 21. Rd1 Nd2 22. Qb4 Qc4 23. Qxc4 Nxc4 24. Rxd8+ Rxd8 25. Bd5 Ne5 26. e4 a5 27. Ra7 Nd3 28. Be3 Bc3 29. Bxf7+ Kh8 30. Bd5 Rb8 31. g4 Rf8 32. g5 Be5 33. Rxa5 Nf4 34. h4 Rb8 35. Ba2 Nd3 36. Rxe5 Nxe5 37. Bd4 Rb5 38. Bd5 h6 39. Bxe5+ Kh7 40. gxh6 Kxh6 41. Kg2 Kh5 42. Bg3 1-0